Cogmind - Beta 13 @@@ ROGUE MODE // 2024.04.10 @ 20:53:01 Player: xSquared Result: Destroyed by G-34 Mercenary with Small Laser Performance ------------- Evolutions (1) 500 Regions Visited (3) 600 Robots Destroyed (18) 90 Value Destroyed (603) 603 Prototype IDs (0) 0 Alien Tech Used (0) 0 Bonus (-36) -36 TOTAL SCORE: 1757 Bonus ------- Follower Combat Kills 50 Friendly Fire -86 Cogmind --------- Core Integrity 0/400 Matter 300/300 Energy 85/100 System Corruption 1% Temperature Cool (6) Movement Core (1350) Ox26 Location -9/Storage Parts ------- > --- POWER (1) -------- (None) > --- PROPULSION (3) --- (None) > --- UTILITY (3) ------ Huge Storage Unit > --- WEAPON (2) ------- (None) > --- INVENTORY (25) --- Ion Engine Improved Treads Improved Treads Improved Hover Unit Improved Hover Unit Small Matter Pod (50) Large Matter Pod (146) Power Shielding Power Shielding Small Laser Peak State ------------ > --- POWER ------------ Ion Engine > --- PROPULSION ------- Improved Hover Unit Improved Hover Unit Improved Hover Unit > --- UTILITY ---------- Huge Storage Unit Medium Matter Pod Reflective Plating > --- WEAPON ----------- Beam Rifle EMP Blaster > --- INVENTORY -------- Ion Engine Improved Hover Unit Improved Hover Unit Power Shielding Power Shielding Small Laser EMP Blaster EMP Blaster [Rating: 17] Favorites ----------- Power Light Ion Engine Engine Light Ion Engine Propulsion Aluminum Leg Leg Aluminum Leg Hover Unit Improved Hover Unit Flight Unit Flight Unit Utility Medium Matter Pod Device Sensor Array Storage Medium Matter Pod Protection Power Shielding Weapon Light Assault Rifle Energy Gun Beam Rifle Ballistic Gun Light Assault Rifle Launcher EMP Blaster Special Weapon Plasma Cutter Build | -11 -10 -9 -9 ------- Run | Yrd Mat Mat Sto Slots Evolved 2 | . . 2 . Power . | . . . . Propulsion 1 | . . 1 . Utility 1 | . . 1 . Weapon . | . . . . Parts Attached 23 | 5 6 7 5 Power 2 | 1 . 1 . Engine 2 | 1 . 1 . Core . | . . . . Reactor . | . . . . Propulsion 9 | 2 2 3 2 Treads . | . . . . Leg 3 | 2 1 . . Wheel . | . . . . Hover 5 | . . 3 2 Flight 1 | . 1 . . Utility 5 | . 3 1 1 Device 1 | . 1 . . Storage 2 | . 1 1 . Processor . | . . . . Hackware . | . . . . Protection 2 | . 1 . 1 Artifact . | . . . . Weapon 7 | 2 1 2 2 Energy Gun 2 | . . 1 1 Energy Cannon . | . . . . Ballistic Gun 3 | 2 1 . . Ballistic Cannon . | . . . . Launcher 1 | . . 1 . Special Weapon 1 | . . . 1 Impact Weapon . | . . . . Slashing Weapon . | . . . . Piercing Weapon . | . . . . Special Melee Weapon . | . . . . Unidentified Prototypes . | . . . . Parts Lost 11 | . . 3 8 Power 1 | . . 1 . Propulsion 3 | . . . 3 Utility 2 | . . . 2 Weapon 5 | . . 2 3 Highest Loss Streak 8 | . . 2 8 To Critical Strikes . | . . . . Average Slot Usage (%) 90 | . 95 88 88 Engine 10 | . 14 9 9 Leg 14 | . 28 13 . Hover 13 | . . 12 29 Device 1 | . 5 . . Storage 18 | . 12 20 20 Protection 8 | . 5 11 9 Energy Gun 5 | . . 6 10 Ballistic Gun 12 | . 28 9 . Launcher 4 | . . 3 8 Naked Turns . | . . . . Heaviest Build 98 | 6 9 93 98 Greatest Support 21 | 20 20 21 21 Greatest Overweight (x) 26 | . . 4 26 Average Overweight (x) 1 | . . 2 4 Largest Inventory Capacity 25 | 5 5 25 25 Average Capacity 16 | 5 5 22 25 Most Carried 11 | 5 5 11 11 Average Carried 5 | 2 3 6 9 Final Capacity 25 | 5 5 25 25 Final Carried 11 | 4 5 11 10 Class Distribution -------------------- 100% | Mutant Dominant Class ---------------- Mutant | -10/Materials Mutant | -9/Materials Mutant | -9/Storage Resources | -11 -10 -9 -9 ----------- Run | Yrd Mat Mat Sto Matter Collected 764 | 262 114 144 244 Remotely . | . . . . Salvage Created 714 | 36 114 181 383 Parts 36 | 1 10 9 16 Haulers Intercepted . | . . . . Recyclers Shooed 1 | . . . 1 Parts Field Recycled . | . . . . Retrieved Matter . | . . . . Parts Self-Destructed . | . . . . Prevented . | . . . . Kills | -11 -10 -9 -9 ------- Run | Yrd Mat Mat Sto Combat Hostiles Destroyed 18 | 1 5 4 8 Guns 13 | 1 5 3 4 AOE 5 | . . 1 4 Classes Destroyed 6 | 1 1 1 3 Swarmer 3 | . 3 . . Grunt 11 | 1 2 3 5 Brawler 1 | . . . 1 Duelist 1 | . . . 1 Protector 1 | . . . 1 Sentry 1 | . . 1 . Best Kill Streak 7 | 1 3 2 7 Combat Bots Only 7 | 1 3 2 7 Max Kills in Single Turn 2 | 1 1 1 2 Gunslinging . | . . . . Exploded 2 | . . 1 2 Melee . | . . . . Uniques/NPCs Destroyed . | . . . . Combat | -11 -10 -9 -9 -------- Run | Yrd Mat Mat Sto Hostile Shots Fired 156 | 4 31 53 68 Missed 34 | . 9 15 10 Damage Taken 1614 | 46 186 512 870 Core 462 | 11 44 84 323 Absorbed by Shields . | . . . . Redirected to Shielding 17 | . 2 15 . Ignored by Resistances 36 | . . . 36 Regen/Repaired (Parts) 26 | . 26 . . Core Remaining (%) 86 | 95 78 . . Volleys Fired 74 | 3 15 24 32 Largest 2 | 2 2 2 2 Hottest 89 | 40 40 73 89 Shots Fired 105 | 6 30 34 35 Gun 98 | 6 30 31 31 Cannon . | . . . . Launcher 7 | . . 3 4 Special . | . . . . Kinetic 51 | 6 30 15 . Thermal 47 | . . 16 31 Explosive . | . . . . Electromagnetic 7 | . . 3 4 Robot Hit Streak 5 | 2 5 5 5 Robot Miss Streak 4 | 1 4 3 2 Penetration Max . | . . . . Secondary Targets 2 | . 2 . . Max Gunslinging Chain 1 | . 1 . . Shots Hit Robots 63 | 4 14 21 24 Core Hits 33 | 2 7 7 17 Critical Kills . | . . . . Critical Parts Destroyed . | . . . . Critical Strikes 1 | . . . 1 Burn 1 | . . . 1 Melee Attacks . | . . . . Impact . | . . . . Slashing . | . . . . Piercing . | . . . . Sneak Attacks . | . . . . Combat Hostiles . | . . . . Follow-up Attacks . | . . . . Damage Inflicted 1359 | 40 150 269 900 Guns 737 | 40 150 182 365 Cannons . | . . . . Explosions 622 | . . 87 535 Melee . | . . . . Ramming . | . . . . Kinetic 262 | 40 150 72 . Thermal 636 | . . 130 506 Explosive . | . . . . Electromagnetic 461 | . . 67 394 Impact . | . . . . Slashing . | . . . . Piercing . | . . . . Highest Corruption 1 | . . 1 1 Average Corruption 1 | . . 1 1 Corruption Purged . | . . . . Corruption Blocked . | . . . . Effects 7 | . . 1 6 Message Errors 1 | . . 1 . Matter Fused 2 | . . . 2 Heat Flow Errors 1 | . . . 1 Energy Discharges 1 | . . . 1 Data Loss (minor) 1 | . . . 1 Weapon Failures 1 | . . . 1 Overload Shots . | . . . . Overflow Damage 6 | . . 6 . Projectiles . | . . . . Explosions 6 | . . 6 . Melee . | . . . . Knockbacks . | . . . . Impact . | . . . . Kinetic . | . . . . Secondary . | . . . . Self-Inflicted Damage 181 | . . 76 105 Shots 9 | . . 4 5 Rammed . | . . . . Targets Rammed . | . . . . Kicked . | . . . . Crushed . | . . . . Highest Temperature 432 | 12 6 51 432 Average Temperature 178 | 7 6 20 237 Received Heat Transfer 624 | 24 30 225 345 Effects 4 | . . . 4 Energy Bleed 2 | . . . 2 Interference 1 | . . . 1 Short Circuit 1 | . . . 1 Siege Activations . | . . . . Robots Corrupted . | . . . . Combat Hostiles . | . . . . Parts Fried 1 | . . . 1 Impact Corruptions . | . . . . Robots Melted . | . . . . Combat Hostiles . | . . . . Parts Melted 2 | . . . 2 Heat Transferred 1453 | . . 300 1153 Parts Sabotaged . | . . . . Parts Stolen . | . . . . Parts Stripped . | . . . . Power Chain Reactions 2 | . . 1 1 Alert | -11 -10 -9 -9 ------- Run | Yrd Mat Mat Sto Peak Influence 202 | 20 176 110 202 Initial 74 | . 13 74 46 Average 77 | 2 78 86 85 Maximum Alert Level 1 | . . . 1 Low Security (%) 99 | 100 100 100 99 Level 1 . | . . . . Level 2 . | . . . . Level 3 . | . . . . Level 4 . | . . . . Level 5 . | . . . . High Security . | . . . . Max Security . | . . . . Squads Dispatched 5 | . . 2 3 Investigation 1 | . . 1 . Extermination . | . . . . Reinforcement 2 | . . 1 1 Assault 2 | . . . 2 Garrison . | . . . . Intercept . | . . . . Searches Triggered . | . . . . Construction Impeded 1 | . . . 1 Haulers Reinforced . | . . . . Active Scanning Responses . | . . . . Cargo Convoy Interrupts . | . . . . Stealth | -11 -10 -9 -9 --------- Run | Yrd Mat Mat Sto Distress Signals 2 | . . 1 1 Communications Jammed . | . . . . Distress Signals . | . . . . Times Spotted 32 | 1 10 8 13 Peak Tracking Total 9 | 1 4 3 9 Tactical Retreats 3 | . 1 2 . Traps | -11 -10 -9 -9 ------- Run | Yrd Mat Mat Sto Traps Triggered 2 | . . 1 1 Indirectly 1 | . . 1 . Trap Hack Attempts . | . . . . Triggered . | . . . . Disarmed . | . . . . Reprogrammed . | . . . . Reused . | . . . . Traps Extracted . | . . . . Installed . | . . . . Triggered . | . . . . Machines | -11 -10 -9 -9 ---------- Run | Yrd Mat Mat Sto Machines Disabled 2 | . . 1 1 Max in Single Turn 1 | . . 1 1 Machines Repaired . | . . . . Machines Dismantled . | . . . . Machines Sabotaged . | . . . . Overloaded Fab Kills . | . . . . Hacking | -11 -10 -9 -9 --------- Run | Yrd Mat Mat Sto Machines Accessed 7 | . 4 1 2 Terminals 4 | . 2 1 1 Fabricators . | . . . . Repair Stations 1 | . 1 . . Recycling Units 2 | . 1 . 1 Scanalyzers . | . . . . Garrison Access . | . . . . Total Hacks 21 | . 11 2 8 Successful 16 | . 9 1 6 Failed 5 | . 2 1 2 Catastrophic . | . . . . Database Lockouts . | . . . . Manual . | . . . . Terminals 9 | . 5 2 2 Fabricators . | . . . . Repair Stations 3 | . 3 . . Recycling Units 9 | . 3 . 6 Scanalyzers . | . . . . Garrison Access . | . . . . Terminal Hacks 6 | . 3 1 2 Record 4 | . 2 1 1 Emergency Access Points 1 | . 1 . . Alert Level 1 | . . . 1 Fabricator Hacks . | . . . . Repair Station Hacks 3 | . 3 . . Scan Component 2 | . 2 . . Repair 1 | . 1 . . Recycling Unit Hacks 7 | . 3 . 4 Recycle Component 4 | . 2 . 2 Process 3 | . 1 . 2 Scanalyzer . | . . . . Garrison Access Hacks . | . . . . Unauthorized Hacks . | . . . . Terminals . | . . . . Fabricators . | . . . . Repair Stations . | . . . . Recycling Units . | . . . . Scanalyzers . | . . . . Garrison Access . | . . . . Data Cores Recovered . | . . . . Used . | . . . . Hacking Detections 5 | . 4 1 . Full Trace Events 1 | . 1 . . Feedback Events . | . . . . Feedback Blocked . | . . . . Robot Schematics Acquired . | . . . . Robots Built . | . . . . Authchips . | . . . . Time . | . . . . Total Robot Build Rating . | . . . . Part Schematics Acquired . | . . . . Parts Built . | . . . . Authchips . | . . . . Time . | . . . . Total Part Build Rating . | . . . . Parts Repaired 1 | . 1 . . Time 26 | . 26 . . Parts Recycled 4 | . 2 . 2 Recycled Matter 306 | . 212 . 94 Retrieved Matter . | . . . . Retrieved Components . | . . . . Parts Scanalyzed . | . . . . Part Schematics Acquired . | . . . . Parts Damaged . | . . . . Bothacking | -11 -10 -9 -9 ------------ Run | Yrd Mat Mat Sto Used RIF Installer . | . . . . Robots Hacked . | . . . . Non-combat . | . . . . Combat . | . . . . Robot Hacks Applied . | . . . . Relay Couplers Released . | . . . . Fabnet Peak Effective % . | . . . . Robots Rewired . | . . . . Allies Hacked . | . . . . Hacks Repelled . | . . . . Allies | -11 -10 -9 -9 -------- Run | Yrd Mat Mat Sto Total Allies 2 | . . . 2 Largest Group 2 | . . . 2 Highest-Rated Group 62 | . . . 62 Highest-Rated Ally 31 | . . . 31 Total Orders . | . . . . Ally Attacks 10 | . . . 10 Total Damage 143 | . . . 143 Kills 2 | . . . 2 Allies Corrupted . | . . . . Allies Melted . | . . . . Intel | -11 -10 -9 -9 ------- Run | Yrd Mat Mat Sto Robot Analysis Total . | . . . . Derelict Logs Recovered . | . . . . Drone Launches . | . . . . Drone Recoveries . | . . . . Exploration | -11 -10 -9 -9 ------------- Run | Yrd Mat Mat Sto Turns Passed 1294 | 103 359 503 329 Spaces Moved 561 | 78 251 152 80 Core 18 | 17 . . 1 Treads . | . . . . Legs 409 | 61 251 97 . Wheels . | . . . . Hover 134 | . . 55 79 Flight . | . . . . Fastest Speed 50 | 50 120 120 292 Average Speed 188 | 104 120 279 314 Slowest Speed 1350 | 120 120 400 1350 Overloaded Moves . | . . . . Propulsion Burnouts . | . . . . Robots Hopped . | . . . . Cave-ins Triggered . | . . . . Exploration Rate (%) 14 | 8 29 10 11 Regions Visited 3 Branch Regions 1 Pre-discovered Areas . | . . . . Known Exits Taken . | . . . . Unknown Exits Taken 3 | 1 1 1 . Scrap Searched . | . . . . Spaces Dug . | . . . . Terrain Destroyed 8 | . . 5 3 Melee . | . . . . Projectile . | . . . . AOE 8 | . . 5 3 Terrain Rammed . | . . . . Walls Destroyed . | . . . . Machines Disabled . | . . . . Actions | -11 -10 -9 -9 --------- Run | Yrd Mat Mat Sto Total 703 | 94 283 201 125 Wait . | . . . . Move 558 | 77 250 151 80 Hop . | . . . . Pick Up 38 | 9 9 15 5 Fast Attach . | . . . . Attach 15 | 5 4 5 1 Detach . | . . . . Swap 8 | . 2 2 4 Drop 10 | . 3 4 3 Fire 74 | 3 15 24 32 Melee . | . . . . Ram . | . . . . Kick . | . . . . Crush . | . . . . Escape Stasis . | . . . . Rewire . | . . . . Trap . | . . . . Miscellaneous . | . . . . Route ------- -11/Scrapyard -10/Materials -9/Materials (discovered 2 exits: *Sto x2) -9/Storage History --------- Turn | Location | Event 2 | -11/Scrapyard | Met Revision 17 78 | -11/Scrapyard | Discovered new exit (range 8) 104 | -11/Scrapyard | Entered Materials 200 | -10/Materials | Repaired Aluminum Leg? 305 | -10/Materials | Build established: Mutant 334 | -10/Materials | Discovered new exit (range 8) 463 | -10/Materials | Entered another Materials area 463 | -9/Materials | Evolved 2 slots: Propulsion x1, Utility x1 463 | -9/Materials | Discovered new exit (range 14) 882 | -9/Materials | Discovered new exit (range 8) 966 | -9/Materials | Entered Storage 1128 | -9/Storage | Met a pair of Derelict thieves 1236 | -9/Storage | Core integrity fell below 50% 1254 | -9/Storage | Core integrity fell below 20% 1262 | -9/Storage | Destroyed 7 combat bots 1295 | -9/Storage | Destroyed by G-34 Mercenary with Small Laser Last Messages --------------- which incurs significant penalties. ALERT: Construction progress impeded, dispatching reinforcements to local area. Overheating: Energy bleed (-3). Broken Plasma Cutter destroyed. Imp. Hover Unit destroyed. G-34 Mercenary destroyed. System corrupted: Matter fused (-5). R-06 Scavenger collects Corrupted Imp. Heat Sink. R-06 Scavenger collects Corrupted Aluminum Leg. Beam Rifle destroyed. Imp. Hover Unit destroyed. R-06 Scavenger collects Corrupted Aluminum Leg. R-06 Scavenger collects Corrupted Carbon-fiber Leg. R-06 Scavenger collects Corrupted Sml. Laser. U-05 Engineer lays Concrete. U-05 Engineer builds a Wall. [Achievement: First Step to Greatness] Map ----- +----------------------------------------------------+ | | | | | | | | | | | | | | | | | | | | | | | | | | | | | | | | | ??????????????????????????????????????????????? | | ??????????????????????????????????????????????? | | ??????????????????????????????????????????????? | | ??????????######T#########################????? | | ????????? *=! #????? | | ????????? %*! =!#????? | | ????????? =% u=%* = #????? | | ????????????????#########/#########/#######???? | | ??????????????????????# %g=##????# #???? | | ??????????????????????#[*@!=#????# #???? | | ??????????????????????##"="###??## """ #???? | | ??????????????????????# %!* #??#" """ #???? | | ??????????????????????# [ ==#??#T """ #???? | | ??????????????????????# = = #??#" """ #???? | | ??????????????????????# = =#??## """ #???? | | ??????????????????????########???# #???? | | ?????????????????????????????????# #???? | | ?????????????????????????????????####"Y"###???? | | ????????????????????????????????????#"""#?????? | | ????????????????????????????????????#####?????? | | ??????????????????????????????????????????????? | | ??????????????????????????????????????????????? | | ??????????????????????????????????????????????? | | ??????????????????????????????????????????????? | | ??????????????????????????????????????????????? | | ??????????????????????????????????????????????? | | ??????????????????????????????????????????????? | | ??????????????????????????????????????????????? | | ??????????????????????????????????????????????? | | ??????????????????????????????????????????????? | | ??????????????????????????????????????????????? | | ??????????????????????????????????????????????? | | ??????????????????????????????????????????????? | | ??????????????????????????????????????????????? | +----------------------------------------------------+ Best States ------------- Heat Dissipation 28 Energy Generation 10 Energy Capacity 250 Matter Stores 400 Matter Capacity 400 Sight Range 16 Robot Scan Range 14 Terrain Scan Density 10 Armor Coverage 150 Resistance: TH 10 Power Shielding 33 Evasion (%) 55 Item Schematics ----------------- None Robot Schematics ------------------ None Fabricated ------------ Nothing Alien Tech Used ----------------- None Achievements -------------- First Step to Greatness Let's See Who's Tougher Part-time Mechanic Uninvited Guest Challenges ------------ None Game ------ Seed HypercooledTachyonFrame Manual? 0 Play Time 00:27:39 Cumulative 0.4 hours Start 2024.04.10 @ 20:23:00 End 2024.04.10 @ 20:53:01 Sessions 1 Manual Loads 0 Difficulty Rogue Special Mode None Game No. 1 Rogue 1 Adventurer 0 Explorer 0 Win Type - Total 0 Types 0/0/0/0/0/0/0/0/0 Lore% 0 Gallery% 1 Achievement% 1 Wizard Run 0 Options --------- Layout 1 ASCII 0 Keyboard 0 Movement Arrows Keybinds 0 Fullscreen 1 Font 24/Smallcaps Map View 50x35 Zoom Use 1% Tactical HUD 0 Map Filters NONE Filters NONE Steam 1 RUN: f02dc322-46a6-4801-822e-04170e36d659